Workbook

Sheet Лист1
A1: Школа | C1: МОБУ СОШ с. Наумовка | F1: Утвердил: | G1: должность | H1: директор
A2: Типовое примерное меню приготавливаемых блюд | G2: фамилия | H2: Сергеев А.П.
A3: Возрастная категория | G3: дата | H3: 2024-04-01
A5: Неделя | B5: День недели | C5: Прием пищи | D5: Раздел меню | E5: Блюда | F5: Вес блюда, г | G5: Белки | H5: Жиры | I5: Углеводы | J5: Калорийность | K5: № рецептуры
A6: 1 | B6: 1 | C6: Завтрак | D6: гор.блюдо | E6: Каша гречневая рассыпчатая с фрикадельками куриными под томатным соусом | F6: 260 | G6: 8.41 | H6: 12.36 | I6: 33.9 | J6: 337 | K6: КП22173 | L6: 69.57
D8: гор.напиток | E8: Чай с лимоном и сахаром | F8: 200 | G8: 1.26 | H8: 0.05 | I8: 2.25 | J8: 50 | K8: КП22001
D9: хлеб | E9: Хлеб пшеничный | F9: 40 | G9: 3.2 | H9: 0.48 | I9: 15.36 | J9: 94 | K9: 0000БЕЛ
D10: фрукты
D13: итого | F13: =SUM(F6:F12) -> 500 | G13: =SUM(G6:G12) -> 12.87 | H13: =SUM(H6:H12) -> 12.89 | I13: =SUM(I6:I12) -> 51.51 | J13: =SUM(J6:J12) -> 481 | L13: =SUM(L6:L12) -> 69.57
A14: =A6 -> 1 | B14: =B6 -> 1 | C14: Обед | D14: закуска
D15: 1 блюдо | E15: Суп картофельный с вермишелью | F15: 200 | G15: 5.88 | H15: 9.08 | I15: 8.2 | J15: 265 | K15: КП22231 | L15: 78.02
D16: 2 блюдо | E16: Плов из куриного филе | F16: 150 | G16: 9.6 | H16: 8.28 | I16: 19.6 | J16: 175 | K16: КП22155
D17: гарнир
D18: напиток | E18: Напиток яблочный | F18: 200 | I18: 17.6 | J18: 67 | K18: КП22007
D19: хлеб бел. | E19: Хлеб пшеничный | F19: 35 | G19: 2.8 | H19: 0.42 | I19: 13.44 | J19: 83 | K19: 0000БЕЛ
D20: хлеб черн. | E20: Хлеб ржаной | F20: 30 | G20: 2.43 | H20: 4.2 | I20: 12.79 | J20: 71 | K20: ШК00БЕЛ
E21: Фрукты свежие | F21: 100 | G21: 0.4 | H21: 0.4 | I21: 9.8 | J21: 47 | K21: КП22153
D23: итого | F23: =SUM(F15:F22) -> 715 | G23: =SUM(G15:G22) -> 21.11 | H23: =SUM(H15:H22) -> 22.38 | I23: =SUM(I15:I22) -> 81.43 | J23: =SUM(J15:J22) -> 708 | L23: =SUM(L15:L22) -> 78.02
A24: =A6 -> 1 | B24: =B6 -> 1 | C24: Итого за день: | F24: =F13+F23 -> 1215 | G24: =G13+G23 -> 33.98 | H24: 35.27 | I24: 132.94 | J24: 1189 | L24: 147.59
A25: 1 | B25: 2 | C25: Завтрак | D25: гор.блюдо | E25: Каша "Дружба" молочная | F25: 150 | G25: 5.8 | H25: 9.82 | I25: 17.34 | J25: 358 | K25: КП22106 | L25: 69.57
D27: гор.напиток | E27: Чай с сахаром | F27: 200 | G27: 0.2 | H27: 0 | I27: 6.5 | J27: 27 | K27: КП22003
D28: хлеб | E28: Хлеб пшеничный | F28: 40 | G28: 3.2 | H28: 0.48 | I28: 15.36 | J28: 94 | K28: 0000БЕЛ
D29: фрукты | E29: Фрукты свеж.(шт.) | F29: 100 | G29: 0.4 | H29: 0.4 | I29: 9.8 | J29: 47 | K29: КП22153
D30: булочное
E31: Сыр порционный | F31: 10 | G31: 3 | H31: 1.6 | I31: 2 | J31: 61 | K31: Д04МА19
D32: итого | F32: =SUM(F25:F31) -> 500 | G32: =SUM(G25:G31) -> 12.6 | H32: 12.3 | I32: 51 | J32: 587 | L32: =SUM(L25:L31) -> 69.57
A33: =A25 -> 1 | B33: =B25 -> 2 | C33: Обед | D33: закуска | E33: Салат " Здоровье" | F33: 60 | G33: 1.35 | H33: 7.65 | I33: 14.1 | J33: 147 | K33: КП22439 | L33: 78.02
D34: 1 блюдо | E34: Рассольник ленинградский с крупой перловой со сметаной | F34: 200 | G34: 3.73 | H34: 5 | I34: 16 | J34: 160 | K34: КП22032
D35: 2 блюдо | E35: Гуляш из говядины ,макароны отварные с маслом | F35: 195 | G35: 3.81 | H35: 5.75 | I35: 27.63 | J35: 221 | K35: КП22695
D36: гарнир
D37: напиток | E37: Компот из вишни | F37: 200 | G37: 6.74 | H37: 0.1 | I37: 10.3 | J37: 43 | K37: КП22002
D38: хлеб бел. | E38: Хлеб пшеничный | F38: 35 | G38: 2.8 | H38: 0.42 | I38: 13.44 | J38: 83 | K38: 0000БЕЛ
D39: хлеб черн. | E39: Хлеб ржаной | F39: 30 | G39: 2.43 | H39: 4.2 | I39: 12.79 | J39: 71 | K39: ШК00БЕЛ
D42: итого | F42: =SUM(F33:F41) -> 720 | G42: =SUM(G33:G41) -> 20.86 | H42: =SUM(H33:H41) -> 23.12 | I42: =SUM(I33:I41) -> 94.26 | J42: =SUM(J33:J41) -> 725 | L42: =SUM(L33:L41) -> 78.02
A43: =A25 -> 1 | B43: =B25 -> 2 | C43: Итого за день: | F43: =F32+F42 -> 1220 | G43: =G32+G42 -> 33.46 | H43: 35.42 | I43: 145.26 | J43: 1312 | L43: =L32+L42 -> 147.59
A44: 1 | B44: 3 | C44: Завтрак | D44: гор.блюдо | E44: Картофельное пюре с котлетами куриными под овощным подливом | F44: 260 | G44: 12.55 | H44: 12.4 | I44: 24.94 | J44: 344 | K44: КП22176 | L44: 69.57
D46: гор.напиток | E46: Чай витаминизированный "Витошка" | F46: 200 | G46: 0 | H46: 0 | I46: 9.7 | J46: 39 | K46: КП22632
D47: хлеб | E47: Хлеб пшеничный | F47: 40 | G47: 3.2 | H47: 0.48 | I47: 15.36 | J47: 94 | K47: 0000БЕЛ
D48: фрукты
D51: итого | F51: =SUM(F44:F50) -> 500 | G51: =SUM(G44:G50) -> 15.75 | H51: =SUM(H44:H50) -> 12.88 | I51: =SUM(I44:I50) -> 50 | J51: =SUM(J44:J50) -> 477 | L51: =SUM(L44:L50) -> 69.57
A52: =A44 -> 1 | B52: =B44 -> 3 | C52: Обед | D52: закуска
D53: 1 блюдо | E53: Щи из свежей капусты с картофелем со сметаной | F53: 200 | G53: 4.5 | H53: 7.8 | I53: 9.6 | J53: 147 | K53: КП22038 | L53: 78.02
D54: 2 блюдо | E54: Каша рисовая рассыпчатая с гуляшом из куриного филе | F54: 160 | G54: 10.2 | H54: 7.9 | I54: 13.5 | J54: 250 | K54: КП22532
D55: гарнир
D56: напиток | E56: Компот из смеси сухофруктов | F56: 200 | G56: 1 | H56: 0.05 | I56: 27.5 | J56: 110 | K56: КП22008
D57: хлеб бел. | E57: Хлеб пшеничный | F57: 35 | G57: 2.8 | H57: 0.42 | I57: 13.44 | J57: 83 | K57: 0000БЕЛ
D58: хлеб черн. | E58: Хлеб ржаной | F58: 30 | G58: 2.43 | H58: 4.2 | I58: 12.79 | J58: 71 | K58: ШК00БЕЛ
E59: Фрукты свежие | F59: 100 | G59: 0.4 | H59: 0.4 | I59: 9.8 | J59: 47 | K59: КП22153
D61: итого | F61: =SUM(F53:F60) -> 725 | G61: =SUM(G53:G60) -> 21.33 | H61: =SUM(H53:H60) -> 20.77 | I61: =SUM(I53:I60) -> 86.63 | J61: =SUM(J53:J60) -> 708 | L61: =SUM(L53:L60) -> 78.02
A62: =A44 -> 1 | B62: =B44 -> 3 | C62: Итого за день: | F62: =F51+F61 -> 1225 | G62: =G51+G61 -> 37.08 | H62: 33.65 | I62: 136.63 | J62: 1185 | L62: 147.59
A63: 1 | B63: 4 | C63: Завтрак | D63: гор.блюдо | E63: Каша манная молочная | F63: 170 | G63: 3.48 | H63: 4.7 | I63: 17.49 | J63: 195 | K63: КП22124 | L63: 69.57
D65: гор.напиток | E65: Чай с сахаром | F65: 200 | G65: 0.2 | H65: 0 | I65: 6.5 | J65: 27 | K65: КП22003
D66: хлеб | E66: Хлеб пшеничный | F66: 40 | G66: 3.2 | H66: 0.48 | I66: 15.36 | J66: 94 | K66: 0000БЕЛ
D67: фрукты
D68: булочное
E69: Сырники из творога с соусом молочным | F69: 90 | G69: 6.5 | H69: 7.6 | I69: 14.2 | J69: 154 | K69: КП22564
D70: итого | F70: =SUM(F63:F69) -> 500 | G70: =SUM(G63:G69) -> 13.38 | H70: =SUM(H63:H69) -> 12.78 | I70: =SUM(I63:I69) -> 53.55 | J70: =SUM(J63:J69) -> 470 | L70: =SUM(L63:L69) -> 69.57
A71: =A63 -> 1 | B71: =B63 -> 4 | C71: Обед | D71: закуска | E71: Салат из свеклы на растительном масле | F71: 60 | G71: 3.5 | H71: 1.8 | I71: 11 | J71: 81 | K71: КП22170 | L71: 78.02
D72: 1 блюдо | E72: Суп картофельный с лапшой домашней | F72: 200 | G72: 4.79 | H72: 6.07 | I72: 16 | J72: 225 | K72: КП22156
D73: 2 блюдо | E73: Каша гречневая рассыпчатая с мясом | F73: 175 | G73: 6.96 | H73: 10.31 | I73: 16.95 | J73: 251 | K73: КП22457
D74: гарнир
D75: напиток | E75: Компот из вишни | F75: 200 | G75: 0.3 | H75: 0.1 | I75: 10.3 | J75: 43 | K75: КП22002
D76: хлеб бел. | E76: Хлеб пшеничный | F76: 35 | G76: 2.8 | H76: 0.42 | I76: 13.44 | J76: 83 | K76: 0000БЕЛ
D77: хлеб черн. | E77: Хлеб ржаной | F77: 30 | G77: 2.43 | H77: 4.2 | I77: 12.79 | J77: 71 | K77: ШК00БЕЛ
D80: итого | F80: =SUM(F71:F79) -> 700 | G80: =SUM(G71:G79) -> 20.78 | H80: =SUM(H71:H79) -> 22.9 | I80: =SUM(I71:I79) -> 80.48 | J80: =SUM(J71:J79) -> 754 | L80: =SUM(L71:L79) -> 78.02
A81: =A63 -> 1 | B81: =B63 -> 4 | C81: Итого за день: | F81: =F70+F80 -> 1200 | G81: =G70+G80 -> 34.16 | H81: 35.68 | I81: 134.03 | J81: 1224 | L81: 147.59
A82: 1 | B82: 5 | C82: Завтрак | D82: гор.блюдо | E82: Плов из говядины | F82: 150 | G82: 5.61 | H82: 7.58 | I82: 13.53 | J82: 192 | K82: КП22475 | L82: 69.57
D84: гор.напиток | E84: Чай с сахаром | F84: 200 | G84: 0.2 | I84: 6.5 | J84: 27 | K84: КП22003
D85: хлеб | E85: Хлеб пшеничный | F85: 40 | G85: 3.2 | H85: 0.48 | I85: 15.36 | J85: 94 | K85: 0000БЕЛ
D86: фрукты
D87: закуска
E88: Коктейль молочный ФрутоKids | F88: 200 | G88: 4.2 | H88: 4.8 | I88: 20 | J88: 178 | K88: КП22240
D89: итого | F89: =SUM(F82:F88) -> 590 | G89: =SUM(G82:G88) -> 13.21 | H89: =SUM(H82:H88) -> 12.86 | I89: =SUM(I82:I88) -> 55.39 | J89: =SUM(J82:J88) -> 491 | L89: =SUM(L82:L88) -> 69.57
A90: =A82 -> 1 | B90: =B82 -> 5 | C90: Обед | D90: закуска
D91: 1 блюдо | E91: Суп крестьянский с крупой (пшено) | F91: 200 | G91: 7.22 | H91: 7.88 | I91: 35.01 | J91: 315 | K91: КП22275 | L91: 78.02
D92: 2 блюдо | E92: Картофельное пюре с биточками рыбными под томатным соусом | F92: 250 | G92: 13.34 | H92: 8.49 | I92: 20.36 | J92: 286 | K92: КП22699
D93: гарнир
D94: напиток | E94: Чай с сахаром | F94: 200 | G94: 0.2 | I94: 6.5 | J94: 27 | K94: КП22003
D95: хлеб бел. | E95: Хлеб пшеничный | F95: 35 | G95: 2.8 | H95: 0.42 | I95: 13.44 | J95: 83 | K95: 0000БЕЛ
D96: хлеб черн. | E96: Хлеб ржаной | F96: 30 | G96: 2.43 | H96: 4.2 | I96: 12.79 | J96: 71 | K96: ШК00БЕЛ
D97: булочное
D99: итого | F99: =SUM(F91:F98) -> 715 | G99: =SUM(G91:G98) -> 25.99 | H99: =SUM(H91:H98) -> 20.99 | I99: =SUM(I91:I98) -> 88.1 | J99: =SUM(J91:J98) -> 782 | L99: =SUM(L91:L98) -> 78.02
A100: =A82 -> 1 | B100: =B82 -> 5 | C100: Итого за день: | F100: =F89+F99 -> 1305 | G100: =G89+G99 -> 39.2 | H100: 33.85 | I100: 143.49 | J100: 1273 | L100: 147.59
A101: 2 | B101: 1 | C101: Завтрак | D101: гор.блюдо | E101: Макароны ,запеченные с сыром | F101: 160 | G101: 8.48 | H101: 11.2 | I101: 19.32 | J101: 303 | K101: КП22577 | L101: 69.57
D103: гор.напиток | E103: Чай с сахаром | F103: 200 | G103: 0.2 | I103: 6.5 | J103: 27 | K103: КП22577
D104: хлеб | E104: Хлеб пшеничный | F104: 40 | G104: 3.2 | H104: 0.48 | I104: 15.36 | J104: 94 | K104: 0000БЕЛ
D105: фрукты | E105: Фрукты свежие | F105: 100 | G105: 0.4 | H105: 0.4 | I105: 9.8 | J105: 47 | K105: КП22153
D108: итого | F108: =SUM(F101:F107) -> 500 | G108: =SUM(G101:G107) -> 12.28 | H108: =SUM(H101:H107) -> 12.08 | I108: =SUM(I101:I107) -> 50.98 | J108: =SUM(J101:J107) -> 471 | L108: =SUM(L101:L107) -> 69.57
A109: =A101 -> 2 | B109: =B101 -> 1 | C109: Обед | D109: закуска
D110: 1 блюдо | E110: Щи из свежей капусты с картофелем со сметаной | F110: 200 | G110: 4.5 | H110: 7.8 | I110: 9.6 | J110: 147 | K110: КП22038 | L110: 78.02
D111: 2 блюдо | E111: Плов из куриного филе | F111: 150 | G111: 9.6 | H111: 8.28 | I111: 19.6 | J111: 175 | K111: КП22155
D112: гарнир
D113: напиток | E113: Чай витаминизированный "Витошка" | F113: 200 | G113: 0 | H113: 0 | I113: 9.7 | J113: 39 | K113: КП22003
D114: хлеб бел. | E114: Хлеб пшеничный | F114: 35 | G114: 2.8 | H114: 0.42 | I114: 13.44 | J114: 83 | K114: 0000БЕЛ
D115: хлеб черн. | E115: Хлеб ржаной | F115: 30 | G115: 2.43 | H115: 4.2 | I115: 12.79 | J115: 71 | K115: ШК00БЕЛ
E116: Фруктовое пюре в ассортименте | F116: 125 | G116: 3.67 | H116: 2.6 | I116: 20 | J116: 196 | K116: ПОК0014
D118: итого | F118: =SUM(F110:F117) -> 740 | G118: =SUM(G110:G117) -> 23 | H118: =SUM(H110:H117) -> 23.3 | I118: =SUM(I110:I117) -> 85.13 | J118: =SUM(J110:J117) -> 711 | L118: =SUM(L110:L117) -> 78.02
A119: =A101 -> 2 | B119: =B101 -> 1 | C119: Итого за день: | F119: =F108+F118 -> 1240 | G119: =G108+G118 -> 35.28 | H119: 35.38 | I119: 136.11 | J119: 1182 | L119: 147.59
A120: 2 | B120: 2 | C120: Завтрак | D120: гор.блюдо | E120: Каша рисовая молочная | F120: 215 | G120: 3.78 | H120: 5.68 | I120: 15.47 | J120: 165 | K120: КП22109 | L120: 69.57
D122: гор.напиток | E122: Чай фруктовый (вишня) | F122: 200 | G122: 6.7 | H122: 0.04 | I122: 0.1 | J122: 28 | K122: КП22717
D123: хлеб | E123: Хлеб пшеничный | F123: 40 | G123: 3.2 | H123: 0.48 | I123: 15.36 | J123: 94 | K123: 0000БЕЛ
D124: фрукты
D125: булочное
E126: Выпечка в ассортимете | F126: 45 | G126: 1.7 | H126: 6.16 | I126: 22 | J126: 270 | K126: КП22689
D127: итого | F127: =SUM(F120:F126) -> 500 | G127: =SUM(G120:G126) -> 15.38 | H127: =SUM(H120:H126) -> 12.36 | I127: =SUM(I120:I126) -> 52.93 | J127: =SUM(J120:J126) -> 557 | L127: =SUM(L120:L126) -> 69.57
A128: =A120 -> 2 | B128: =B120 -> 2 | C128: Обед | D128: закуска | E128: Винегрет овощной | F128: 90 | G128: 1.13 | H128: 2.03 | I128: 6.53 | J128: 50 | K128: КП22181 | L128: 78.02
D129: 1 блюдо | E129: Суп картофельный с бобовыми и гренками | F129: 200 | G129: 3.6 | H129: 5 | I129: 14 | J129: 195 | K129: КП22228
D130: 2 блюдо | E130: Жаркое по-домашнему (говядина) | F130: 150 | G130: 14.1 | H130: 13.02 | I130: 17.6 | J130: 245 | K130: КП22252
D131: гарнир
D132: напиток | E132: Компот из сухофруктов | F132: 200 | G132: 1 | H132: 0.05 | I132: 27.5 | J132: 110 | K132: КП22008
D133: хлеб бел. | E133: Хлеб пшеничный | F133: 35 | G133: 2.8 | H133: 0.42 | I133: 13.44 | J133: 83 | K133: 0000БЕЛ
D134: хлеб черн. | E134: Хлеб ржаной | F134: 30 | G134: 2.43 | H134: 4.2 | I134: 12.79 | J134: 71 | K134: ШК00БЕЛ
D137: итого | F137: =SUM(F128:F136) -> 705 | G137: =SUM(G128:G136) -> 25.06 | H137: =SUM(H128:H136) -> 24.72 | I137: =SUM(I128:I136) -> 91.86 | J137: =SUM(J128:J136) -> 754 | L137: =SUM(L128:L136) -> 78.02
A138: =A120 -> 2 | B138: =B120 -> 2 | C138: Итого за день: | F138: =F127+F137 -> 1205 | G138: =G127+G137 -> 40.44 | H138: 37.08 | I138: 144.79 | J138: 1311 | L138: 147.59
A139: 2 | B139: 3 | C139: Завтрак | D139: гор.блюдо | E139: Каша гречневая рассыпчатая с биточками мясными под соусом томатным | F139: 260 | G139: 11.68 | H139: 12.42 | I139: 28.86 | J139: 359 | K139: КП22706 | L139: 69.57
D141: гор.напиток | E141: Какао с молоком | F141: 200 | G141: 0.4 | H141: 2.3 | I141: 10.2 | J141: 69 | K141: КП22572
D142: хлеб | E142: Хлеб пшеничный | F142: 40 | G142: 3.2 | H142: 0.48 | I142: 15.36 | J142: 94 | K142: 0000БЕЛ
D143: фрукты
D146: итого | F146: =SUM(F139:F145) -> 500 | G146: =SUM(G139:G145) -> 15.28 | H146: =SUM(H139:H145) -> 15.2 | I146: =SUM(I139:I145) -> 54.42 | J146: =SUM(J139:J145) -> 522 | L146: =SUM(L139:L145) -> 69.57
A147: =A139 -> 2 | B147: =B139 -> 3 | C147: Обед | D147: закуска
D148: 1 блюдо | E148: Суп с рисовой крупой | F148: 200 | G148: 2.44 | H148: 2.28 | I148: 13.48 | J148: 120 | K148: КП22260 | L148: 78.02
D149: 2 блюдо | E149: Макароны отварные с фрикадельками куриными под белым соусом | F149: 215 | G149: 12.4 | H149: 11.9 | I149: 26 | J149: 444 | K149: ;КП22705
D150: гарнир
D151: напиток | E151: Компот из вишни | F151: 200 | G151: 0.3 | H151: 0.1 | I151: 10.3 | J151: 43 | K151: КП22002
D152: хлеб бел. | E152: Хлеб пшеничный | F152: 35 | G152: 2.8 | H152: 0.42 | I152: 13.44 | J152: 83 | K152: 0000БЕЛ
D153: хлеб черн. | E153: Хлеб ржаной | F153: 30 | G153: 2.43 | H153: 4.2 | I153: 12.79 | J153: 71 | K153: ШК00БЕЛ
E154: Шоколад в ассортименте | F154: 20 | G154: 2.5 | H154: 2.3 | I154: 15 | J154: 35 | K154: КП22654
D156: итого | F156: =SUM(F148:F155) -> 700 | G156: =SUM(G148:G155) -> 22.87 | H156: =SUM(H148:H155) -> 21.2 | I156: =SUM(I148:I155) -> 91.01 | J156: =SUM(J148:J155) -> 796 | L156: =SUM(L148:L155) -> 78.02
A157: =A139 -> 2 | B157: =B139 -> 3 | C157: Итого за день: | F157: =F146+F156 -> 1200 | G157: =G146+G156 -> 38.15 | H157: 36.4 | I157: 145.43 | J157: 1318 | L157: =SUM(L146+L156) -> 147.59
A158: 2 | B158: 4 | C158: Завтрак | D158: гор.блюдо | E158: Каша "Дружба" молочная | F158: 160 | G158: 9.12 | H158: 12 | I158: 21.98 | J158: 314 | K158: КП22105 | L158: 69.57
D160: гор.напиток | E160: Чай с сахаром | F160: 200 | G160: 0.2 | H160: 0 | I160: 6.5 | J160: 27 | K160: КП22003
D161: хлеб | E161: Хлеб пшеничный | F161: 40 | G161: 3.2 | H161: 0.48 | I161: 15.36 | J161: 94 | K161: 0000БЕЛ
D162: фрукты | E162: Фрукты свежие | F162: 100 | G162: 0.4 | H162: 0.4 | I162: 9.8 | J162: 47 | K162: КП22153
D165: итого | F165: =SUM(F158:F164) -> 500 | G165: =SUM(G158:G164) -> 12.92 | H165: =SUM(H158:H164) -> 12.88 | I165: =SUM(I158:I164) -> 53.64 | J165: =SUM(J158:J164) -> 482 | L165: =SUM(L158:L164) -> 69.57
A166: =A158 -> 2 | B166: =B158 -> 4 | C166: Обед | D166: закуска
D167: 1 блюдо | E167: Суп картофельный с лапшой домашней | F167: 200 | G167: 4.79 | H167: 4.07 | I167: 16 | J167: 225 | K167: КП22156 | L167: 78.02
D168: 2 блюдо | E168: Рагу овощное с курицей | F168: 235 | G168: 15.28 | H168: 15.39 | I168: 56.4 | J168: 403 | K168: КП22021
D169: гарнир
D170: напиток | E170: Напиток яблочный | F170: 200 | I170: 1 | J170: 32 | K170: КП22007
D171: хлеб бел. | E171: Хлеб пшеничный | F171: 35 | G171: 2.8 | H171: 0.42 | I171: 13.44 | J171: 83 | K171: 0000БЕЛ
D172: хлеб черн. | E172: Хлеб ржаной | F172: 30 | G172: 2.43 | H172: 4.2 | I172: 12.79 | J172: 71 | K172: ШК00БЕЛ
D175: итого | F175: =SUM(F167:F174) -> 700 | G175: =SUM(G167:G174) -> 25.3 | H175: =SUM(H167:H174) -> 24.08 | I175: =SUM(I167:I174) -> 99.63 | J175: =SUM(J167:J174) -> 814 | L175: =SUM(L167:L174) -> 78.02
A176: =A158 -> 2 | B176: =B158 -> 4 | C176: Итого за день: | F176: =F165+F175 -> 1200 | G176: =G165+G175 -> 38.22 | H176: 36.96 | I176: 153.27 | J176: 1296 | L176: 147.59
A177: 2 | B177: 5 | C177: Завтрак | D177: гор.блюдо | E177: Картофельное пюре с биточками рыбными под томатным соусом | F177: 260 | G177: 11.88 | H177: 12.02 | I177: 30.14 | J177: 339 | K177: КП22176 | L177: 69.57
D179: гор.напиток | E179: Чай с сахаром | F179: 200 | G179: 0.2 | I179: 6.5 | J179: 50 | K179: КП22001
D180: хлеб | E180: Хлеб пшеничный | F180: 40 | G180: 3.2 | H180: 0.48 | I180: 15.36 | J180: 94 | K180: 0000БЕЛ
D181: фрукты
D182: булочное
D184: итого | F184: =SUM(F177:F183) -> 500 | G184: 15.28 | H184: =SUM(H177:H183) -> 12.5 | I184: =SUM(I177:I183) -> 52 | J184: =SUM(J177:J183) -> 483 | L184: =SUM(L177:L183) -> 69.57
A185: =A177 -> 2 | B185: =B177 -> 5 | C185: Обед | D185: закуска
D186: 1 блюдо | E186: Свекольник со сметаной | F186: 200 | G186: 3.08 | H186: 7.04 | I186: 12.48 | J186: 167 | K186: КП22317 | L186: 78.02
D187: 2 блюдо | E187: Каша гречневая рассыпчатая с котлетами куриными под овощным подливом | F187: 240 | G187: 11.52 | H187: 9.72 | I187: 21.58 | J187: 275 | K187: КП22173
D188: гарнир
D189: напиток | E189: Компот из смеси сухофруктов | F189: 200 | G189: 1 | H189: 0.05 | I189: 27.5 | J189: 110 | K189: КП22008
D190: хлеб бел. | E190: Хлеб пшеничный | F190: 35 | G190: 2.8 | H190: 0.42 | I190: 13.44 | J190: 83 | K190: 0000БЕЛ
D191: хлеб черн. | E191: Хлеб ржаной | F191: 30 | G191: 2.43 | H191: 4.2 | I191: 12.79 | J191: 71 | K191: ШК00БЕЛ
D194: итого | F194: =SUM(F186:F193) -> 705 | G194: =SUM(G186:G193) -> 20.83 | H194: =SUM(H186:H193) -> 21.43 | I194: =SUM(I186:I193) -> 87.79 | J194: =SUM(J186:J193) -> 706 | L194: =SUM(L186:L193) -> 78.02
A195: =A177 -> 2 | B195: =B177 -> 5 | C195: Итого за день: | F195: =F184+F194 -> 1205 | G195: =G184+G194 -> 36.11 | H195: 33.93 | I195: 139.79 | J195: 1189 | L195: 147.59
